Cogmind - Beta 14 @@@ ROGUE MODE // 2025.01.11 @ 06:16:13 Player: Swagumen Result: Destroyed by as-67011 with Assembled Heavy Rifle Performance ------------- Evolutions (0) 0 Regions Visited (2) 400 Robots Destroyed (22) 110 Value Destroyed (351) 351 Prototype IDs (2) 40 Alien Tech Used (0) 0 Bonus (0) 0 TOTAL SCORE: 901 Bonus ------- None Cogmind --------- Core Integrity 0/250 Matter 189/300 Energy 100/100 System Corruption 1% Temperature Cool (0) Movement Flying (40) Location -10/Mines Parts ------- > --- POWER (1) -------- (None) > --- PROPULSION (2) --- Flight Unit > --- UTILITY (2) ------ Hacking Suite > --- WEAPON (2) ------- Makeshift Axe > --- INVENTORY (5) ---- Ion Engine Medium Laser Peak State ------------ > --- POWER ------------ Ion Engine > --- PROPULSION ------- Flight Unit Flight Unit > --- UTILITY ---------- Sensor Array Hacking Suite > --- WEAPON ----------- Datajack Makeshift Axe > --- INVENTORY -------- Ion Engine Medium Laser Mining Claw Mining Claw [Rating: 12] Favorites ----------- Power Ion Engine Engine Ion Engine Propulsion Flight Unit Wheel Wheel Flight Unit Flight Unit Utility Seismic Detector Device Seismic Detector Storage Large Storage Unit Hackware Hacking Suite Weapon Assault Rifle Energy Gun Medium Laser Ballistic Gun Assault Rifle Special Weapon Mining Laser Slashing Weapon Mining Claw Special Melee Weapon Datajack Build | -11 -10 -10 ------- Run | Yrd Mat Min Slots Evolved . | . . . Power . | . . . Propulsion . | . . . Utility . | . . . Weapon . | . . . Parts Attached 27 | 7 18 2 Power 1 | 1 . . Engine 1 | 1 . . Core . | . . . Reactor . | . . . Propulsion 6 | 2 3 1 Treads . | . . . Leg . | . . . Wheel 2 | 2 . . Hover . | . . . Flight 4 | . 3 1 Utility 5 | 1 4 . Device 2 | . 2 . Storage 2 | 1 1 . Processor . | . . . Hackware 1 | . 1 . Protection . | . . . Artifact . | . . . Weapon 15 | 3 11 1 Energy Gun 1 | 1 . . Energy Cannon . | . . . Ballistic Gun 8 | 2 6 . Ballistic Cannon . | . . . Launcher . | . . . Special Weapon 1 | . 1 . Impact Weapon . | . . . Slashing Weapon 4 | . 3 1 Piercing Weapon . | . . . Special Melee Weapon 1 | . 1 . Unidentified Prototypes . | . . . Parts Lost 6 | . 3 3 Power 1 | . . 1 Propulsion 3 | . 2 1 Utility 2 | . 1 1 Weapon . | . . . Highest Loss Streak 3 | . 1 3 To Critical Strikes . | . . . Average Slot Usage (%) 96 | . 96 95 Engine 13 | . 14 13 Wheel 16 | . 19 . Flight 10 | . 7 27 Device 13 | . 13 13 Storage 8 | . 9 . Hackware 5 | . 4 14 Energy Gun 3 | . 4 . Ballistic Gun 11 | . 13 . Slashing Weapon 6 | . 4 14 Special Melee Weapon 5 | . 4 13 Peak Build Rating 12 | 6 10 12 Average Rating 7 | 3 7 11 On Entrance 4 | . 6 8 Naked Turns . | . . . Heaviest Build 30 | 14 30 10 Greatest Support 26 | 26 26 8 Greatest Overweight (x) 2 | . 2 1 Average Overweight (x) . | . . . Largest Inventory Capacity 15 | 8 15 5 Average Capacity 10 | 6 11 5 Most Carried 15 | 5 15 4 Average Carried 5 | 1 5 2 Final Capacity 8 | 8 5 5 Final Carried 4 | 2 4 2 Class Distribution -------------------- 61% | Mutant 38% | Scavenger-Mutant Dominant Class ---------------- Mutant | -10/Materials Scavenger-Mutant | -10/Mines Resources | -11 -10 -10 ----------- Run | Yrd Mat Min Matter Collected 503 | 151 300 52 Remotely . | . . . Salvage Created 558 | 96 462 . Parts 52 | 6 46 . Haulers Intercepted . | . . . Recyclers Shooed . | . . . Parts Field Recycled . | . . . Retrieved Matter . | . . . Parts Self-Destructed . | . . . Prevented . | . . . Kills | -11 -10 -10 ------- Run | Yrd Mat Min Combat Hostiles Destroyed 16 | . 16 . Melee 4 | . 4 . Guns 12 | . 12 . Classes Destroyed 8 | 2 6 . Worker 1 | . 1 . Builder 1 | . 1 . Tunneler 1 | 1 . . Recycler 1 | 1 . . Operator 1 | . 1 . Watcher 1 | . 1 . Swarmer 11 | . 11 . Grunt 5 | . 5 . Best Kill Streak 5 | 2 5 . Combat Bots Only 4 | . 4 . Max Kills in Single Turn 2 | 1 2 . Gunslinging 1 | . 1 . Exploded . | . . . Melee 1 | . 1 . Uniques/NPCs Destroyed . | . . . Combat | -11 -10 -10 -------- Run | Yrd Mat Min Hostile Shots Fired 94 | . 89 5 Missed 18 | . 18 . Damage Taken 722 | . 616 106 Core 251 | . 178 73 Absorbed by Shields . | . . . Regen/Repaired (Parts) 27 | . 27 . Core Remaining (%) 100 | 100 . . Volleys Fired 51 | 4 47 . Largest 2 | 2 2 . Hottest 100 | 70 100 . Shots Fired 85 | 8 77 . Gun 83 | 8 75 . Cannon . | . . . Launcher . | . . . Special 2 | . 2 . Kinetic 68 | 4 64 . Thermal 17 | 4 13 . Explosive . | . . . Electromagnetic . | . . . Robot Hit Streak 6 | 3 6 . Robot Miss Streak 4 | 1 4 . Penetration Max . | . . . Secondary Targets 2 | . 2 . Max Gunslinging Chain 1 | . 1 . Shots Hit Robots 61 | 5 55 1 Core Hits 28 | 3 25 . Critical Kills . | . . . Critical Parts Destroyed . | . . . Critical Strikes . | . . . Melee Attacks 24 | . 22 2 Impact . | . . . Slashing 17 | . 15 2 Piercing . | . . . Sneak Attacks 4 | . 4 . Combat Hostiles . | . . . Follow-up Attacks . | . . . Damage Inflicted 734 | 60 633 41 Guns 551 | 60 491 . Cannons . | . . . Explosions . | . . . Melee 183 | . 142 41 Ramming . | . . . Kinetic 437 | 36 401 . Thermal 114 | 24 90 . Explosive . | . . . Electromagnetic . | . . . Impact . | . . . Slashing 183 | . 142 41 Piercing . | . . . Highest Corruption 1 | . 1 1 Average Corruption 1 | . 1 1 Corruption Purged . | . . . Corruption Blocked . | . . . Effects 9 | . 5 4 Message Errors 3 | . 2 1 Matter Fused 2 | . 1 1 Heat Flow Errors 3 | . 2 1 Data Loss (major) 1 | . . 1 Overload Shots . | . . . Overflow Damage 1 | . . 1 Projectiles . | . . . Explosions . | . . . Melee 1 | . . 1 Knockbacks . | . . . Impact . | . . . Kinetic . | . . . Secondary . | . . . Self-Inflicted Damage . | . . . Shots . | . . . Rammed . | . . . Targets Rammed . | . . . Kicked . | . . . Crushed . | . . . Highest Temperature 178 | 56 178 122 Average Temperature 35 | 35 32 65 Received Heat Transfer 108 | . 108 . Siege Activations . | . . . Robots Corrupted . | . . . Combat Hostiles . | . . . Parts Fried . | . . . Impact Corruptions . | . . . Robots Melted . | . . . Combat Hostiles . | . . . Parts Melted 2 | . 2 . Heat Transferred 333 | 74 259 . Parts Sabotaged . | . . . Parts Stolen . | . . . Parts Stripped . | . . . Power Chain Reactions . | . . . Alert | -11 -10 -10 ------- Run | Yrd Mat Min Peak Influence 336 | 10 336 123 Initial 123 | . 6 123 Average 161 | 3 182 121 Maximum Alert Level 1 | . 1 . Low Security (%) 58 | 100 47 100 Level 1 41 | . 52 . Level 2 . | . . . Level 3 . | . . . Level 4 . | . . . Level 5 . | . . . High Security . | . . . Max Security . | . . . Squads Dispatched 3 | . 3 . Investigation 2 | . 2 . Extermination . | . . . Reinforcement 1 | . 1 . Assault . | . . . Garrison . | . . . Intercept . | . . . Searches Triggered . | . . . Construction Impeded . | . . . Haulers Reinforced . | . . . Active Scanning Responses . | . . . Cargo Convoy Interrupts . | . . . Stealth | -11 -10 -10 --------- Run | Yrd Mat Min Distress Signals . | . . . Communications Jammed . | . . . Distress Signals . | . . . Times Spotted 30 | . 24 6 Peak Tracking Total 5 | . 5 5 Tactical Retreats 4 | . 3 1 Traps | -11 -10 -10 ------- Run | Yrd Mat Min Traps Triggered 1 | . 1 . Indirectly . | . . . Trap Hack Attempts . | . . . Triggered . | . . . Disarmed 8 | . 8 . Reprogrammed . | . . . Reused . | . . . Traps Extracted . | . . . Installed . | . . . Triggered . | . . . Machines | -11 -10 -10 ---------- Run | Yrd Mat Min Machines Disabled 2 | . 2 . Max in Single Turn 1 | . 1 . Machines Repaired . | . . . Machines Dismantled . | . . . Machines Sabotaged . | . . . Overloaded Fab Kills . | . . . Hacking | -11 -10 -10 --------- Run | Yrd Mat Min Machines Accessed 6 | . 6 . Terminals 3 | . 3 . Fabricators . | . . . Repair Stations 1 | . 1 . Recycling Units 2 | . 2 . Scanalyzers . | . . . Garrison Access . | . . . Total Hacks 23 | . 23 . Successful 15 | . 15 . Failed 8 | . 8 . Catastrophic . | . . . Database Lockouts . | . . . Manual . | . . . Terminals 11 | . 11 . Fabricators . | . . . Repair Stations 4 | . 4 . Recycling Units 8 | . 8 . Scanalyzers . | . . . Garrison Access . | . . . Terminal Hacks 6 | . 6 . Record 1 | . 1 . Prototype ID Bank 1 | . 1 . Locate Traps 1 | . 1 . Disarm Traps 2 | . 2 . Hauler Manifests 1 | . 1 . Fabricator Hacks . | . . . Repair Station Hacks 3 | . 3 . Scan Component 2 | . 2 . Repair 1 | . 1 . Recycling Unit Hacks 6 | . 6 . Process 3 | . 3 . Report Inventory 2 | . 2 . Retrieve Matter 1 | . 1 . Scanalyzer . | . . . Garrison Access Hacks . | . . . Unauthorized Hacks . | . . . Terminals . | . . . Fabricators . | . . . Repair Stations . | . . . Recycling Units . | . . . Scanalyzers . | . . . Garrison Access . | . . . Data Cores Recovered . | . . . Used . | . . . Hacking Detections 5 | . 5 . Full Trace Events 2 | . 2 . Feedback Events 1 | . 1 . Corruption 1 | . 1 . Feedback Blocked . | . . . Robot Schematics Acquired . | . . . Robots Built . | . . . Authchips . | . . . Time . | . . . Total Robot Build Rating . | . . . Part Schematics Acquired . | . . . Parts Built . | . . . Authchips . | . . . Time . | . . . Total Part Build Rating . | . . . Parts Repaired 1 | . 1 . Time 26 | . 26 . Parts Recycled . | . . . Recycled Matter 7 | . 7 . Retrieved Matter 7 | . 7 . Retrieved Components . | . . . Parts Scanalyzed . | . . . Part Schematics Acquired . | . . . Parts Damaged . | . . . Bothacking | -11 -10 -10 ------------ Run | Yrd Mat Min Used RIF Installer . | . . . Robots Hacked 2 | . 2 . Non-combat 1 | . 1 . Combat 1 | . 1 . Robot Hacks Applied 3 | . 3 . parse_system 2 | . 2 . no_distress 1 | . 1 . Relay Couplers Released . | . . . Fabnet Peak Effective % . | . . . Robots Rewired . | . . . Allies Hacked . | . . . Hacks Repelled . | . . . Allies | -11 -10 -10 -------- Run | Yrd Mat Min Total Allies . | . . . Largest Group . | . . . Highest-Rated Group . | . . . Highest-Rated Ally . | . . . Total Orders . | . . . Ally Attacks . | . . . Total Damage . | . . . Kills . | . . . Allies Corrupted . | . . . Allies Melted . | . . . Intel | -11 -10 -10 ------- Run | Yrd Mat Min Robot Analysis Total . | . . . Derelict Logs Recovered . | . . . Drone Launches . | . . . Drone Recoveries . | . . . Exploration | -11 -10 -10 ------------- Run | Yrd Mat Min Turns Passed 991 | 68 783 140 Spaces Moved 577 | 56 404 117 Core 27 | 27 . . Treads . | . . . Legs . | . . . Wheels 311 | 29 282 . Hover . | . . . Flight 239 | . 122 117 Fastest Speed 40 | 50 90 40 Average Speed 109 | 70 113 111 Slowest Speed 200 | 90 200 117 Overloaded Moves . | . . . Propulsion Burnouts . | . . . Robots Hopped . | . . . Cave-ins Triggered . | . . . Exploration Rate (%) 30 | 5 65 20 Regions Visited 2 Branch Regions 1 Pre-discovered Areas . | . . . Known Exits Taken . | . . . Unknown Exits Taken 2 | 1 1 . Scrap Searched 1 | . . 1 Spaces Dug 4 | . 4 . Terrain Destroyed 4 | . 4 . Melee 2 | . 2 . Projectile 2 | . 2 . AOE . | . . . Terrain Rammed . | . . . Walls Destroyed . | . . . Machines Disabled . | . . . Actions | -11 -10 -10 --------- Run | Yrd Mat Min Total 817 | 77 616 124 Wait 96 | . 96 . Move 575 | 55 403 117 Hop . | . . . Pick Up 28 | 9 18 1 Fast Attach . | . . . Attach 12 | 7 4 1 Detach 1 | 1 . . Swap 15 | . 14 1 Drop 15 | 1 12 2 Fire 51 | 4 47 . Melee 24 | . 22 2 Ram . | . . . Kick . | . . . Crush . | . . . Escape Stasis . | . . . Rewire . | . . . Trap . | . . . Miscellaneous . | . . . Route ------- -11/Scrapyard -10/Materials (discovered 3 exits: [*Mat] / [*Min x2]) -10/Mines History --------- Turn | Location | Event 2 | -11/Scrapyard | Met Revision 17 12 | -11/Scrapyard | Discovered new exit (range 16) 69 | -11/Scrapyard | Entered Materials 295 | -10/Materials | Repaired Assault Rifle 334 | -10/Materials | Build established: Mutant 396 | -10/Materials | Discovered new exit (range 15) 429 | -10/Materials | Discovered new exit (range 15) 624 | -10/Materials | Discovered new exit (range 15) 687 | -10/Materials | Core integrity fell below 50% 852 | -10/Materials | Entered Mines 880 | -10/Mines | A weapon hastily lodged in a ceiling crevice suddenly fell to the ground 907 | -10/Mines | Build established: Scavenger-Mutant 936 | -10/Mines | Assembled infested the area 988 | -10/Mines | Core integrity fell below 20% 992 | -10/Mines | Destroyed by as-67011 with Assembled Heavy Rifle Last Messages --------------- A Mak. Axe has been hastily shoved under some rubble with a note attached: "Chop chop!" Acquired Mak. Axe. Dropped Mining Claw. Searching scrap... Found Sml. Storage Unit. Found Targeting Computer. Found Assault Rifle. Found 52 Matter. Acquired 52 matter. System corrupted: Matter fused (-10). ALERT: Infestation in the mines, dispatching Demolisher response squad. System corrupted: Heat flow error (+138). XT WJ7QESBO66IQCJ9UO7O>:TRJQ Destroyed Asb. Hover Unit. Flight Unit destroyed. Ion Engine destroyed. Sensor Array destroyed. Datajack severed. Map ----- +----------------------------------------------------+ | ???????????????????????????????????? | | ???????????????????????????????????? | | ???????????????????????????????????? | | ???????????????????????????????????? | | ???????????????????????????????????? | | ???????????????????????????????????? | | ?????????????????#####?????????????? | | ?????????????##### #####?????????? | | ??####???????# ##????????? | | ?## ##??????# ## #######??? | | ## / #??????# ### ##?? | | / #??????# #?## ### #?? | | ### ##??????# #??# #?## #?? | | ??# ######### #### #??## ##?? | | ??# #??## ##??? | | ??## ######?## #???? | | ???##![#########?????## #???? | | ????# ##????????????##/a #???? | | ????#!#????????????## #???? | | ????# #????????????# """" ##???? | | ???? #????????????# """"a ##????? | | ????###????????????# """" #?????? | | ??????????????????## ##????? | | ??????????????????# #????? | | ??????????????????# #????? | | ??????????????????## @ #????? | | ???????????????????#### ##????? | | ??????????????????????### #?????? | | ????????????????????????## #?????? | | ?????????????????????????# #?????? | | ????????????????????????? ##?????? | | ????????????????????????#####??????? | | ???????????????????????????????????? | | ???????????????????????????????????? | | ???????????????????????????????????? | | ???????????????????????????????????? | | ???????????????????????????????????? | | ???????????????????????????????????? | | ???????????????????????????????????? | | ???????????????????????????????????? | | ???????????????????????????????????? | | ???????????????????????????????????? | | ???????????????????????????????????? | | ???????????????????????????????????? | | ???????????????????????????????????? | | ???????????????????????????????????? | | ???????????????????????????????????? | | ???????????????????????????????????? | | ???????????????????????????????????? | | ???????????????????????????????????? | +----------------------------------------------------+ Best States ------------- Heat Dissipation 25 Energy Generation 10 Energy Capacity 250 Matter Stores 300 Matter Capacity 300 Sight Range 16 Robot Scan Range 14 Terrain Scan Density 10 Evasion (%) 62 Offensive Hacking 10 Item Schematics ----------------- None Robot Schematics ------------------ None Fabricated ------------ Nothing Alien Tech Used ----------------- None Achievements -------------- None Challenges ------------ None Game ------ Seed GrenadeSubdwellerDeflector Manual? 0 Play Time 00:28:38 Cumulative 2.7 hours Start 2025.01.11 @ 05:48:29 End 2025.01.11 @ 06:16:13 Sessions 1 Manual Loads 0 Difficulty Rogue Special Mode None Game No. 5 Rogue 5 Adventurer 0 Explorer 0 Win Type - Total 0 Types 0/0/0/0/0/0/0/0/0 Lore% 3 Gallery% 6 Achievement% 7 Wizard Run 0 Options --------- Layout 1 ASCII 0 Keyboard 0 Movement Mouse Keybinds 0 Fullscreen 0 Font 28/CherryShadow Map View 50x35 Zoom Use 0% Tactical HUD 0 Map Filters NONE Filters NONE Steam 1 RUN: 0666c065-942c-4c79-a973-b21a10cfd157